Cogmind - Beta 15 @@@ ROGUE MODE // 2025.08.04 @ 20:36:51 Player: Hugon2010 Result: Destroyed by G-34 Mercenary with Small Laser Performance ------------- Evolutions (1) 500 Regions Visited (2) 400 Robots Destroyed (13) 65 Value Destroyed (225) 225 Prototype IDs (1) 20 Alien Tech Used (0) 0 Bonus (0) 0 TOTAL SCORE: 1210 Bonus ------- None Cogmind --------- Core Integrity 0/400 Matter 293/300 Energy 99/100 System Corruption 8% Temperature Cool (21) Movement Core (50) Location -9/Materials Parts ------- > --- POWER (1) -------- (None) > --- PROPULSION (4) --- (None) > --- UTILITY (2) ------ (None) > --- WEAPON (2) ------- (None) > --- INVENTORY (5) ---- Ion Engine Small Storage Unit Small Storage Unit Faulty Advanced Beam Cannon Assault Rifle Peak State ------------ > --- POWER ------------ Light Nuclear Core > --- PROPULSION ------- Light Treads Light Treads > --- UTILITY ---------- Small Storage Unit Small Storage Unit > --- WEAPON ----------- Medium Laser Medium Laser > --- INVENTORY -------- Ion Engine Light Ion Engine Small Storage Unit Small Storage Unit Assault Rifle Grenade Launcher [Rating: 9] Favorites ----------- Power Light Nuclear Core Engine Light Ion Engine Power Core Light Nuclear Core Propulsion Light Treads Treads Light Treads Utility Small Storage Unit Storage Small Storage Unit Weapon Medium Laser Energy Gun Medium Laser Build | -11 -10 -9 ------- Run | Yrd Mat Mat Slots Evolved 2 | . . 2 Power . | . . . Propulsion 2 | . . 2 Utility . | . . . Weapon . | . . . Parts Attached 8 | 6 2 . Power 2 | 1 1 . Engine 1 | 1 . . Core 1 | . 1 . Reactor . | . . . Propulsion 2 | 2 . . Treads 2 | 2 . . Leg . | . . . Wheel . | . . . Hover . | . . . Flight . | . . . Utility 2 | 1 1 . Device . | . . . Storage 2 | 1 1 . Processor . | . . . Hackware . | . . . Protection . | . . . Artifact . | . . . Weapon 2 | 2 . . Energy Gun 2 | 2 . . Energy Cannon . | . . . Ballistic Gun . | . . . Ballistic Cannon . | . . . Launcher . | . . . Special Weapon . | . . . Impact Weapon . | . . . Slashing Weapon . | . . . Piercing Weapon . | . . . Special Melee Weapon . | . . . Unidentified Prototypes . | . . . Parts Lost 6 | . 1 5 Power . | . . . Propulsion 2 | . 1 1 Utility 2 | . . 2 Weapon 2 | . . 2 Highest Loss Streak 4 | . 1 4 To Critical Strikes . | . . . Average Backups 5 | 1 5 7 Power 1 | . 1 2 Propulsion . | . . . Utility 1 | . 2 2 Weapon 2 | . 2 3 Tool/Special . | . . . Unused Backups 9 | . 3 6 Power 1 | . . 1 Propulsion . | . . . Utility 5 | . 3 2 Weapon 3 | . . 3 Tool/Special . | . . . Average Slot Usage (%) 85 | . 98 55 Engine 4 | . 6 . Core 7 | . 7 9 Treads 20 | . 26 5 Storage 25 | . 27 21 Energy Gun 25 | . 28 19 Peak Build Rating 9 | 6 9 8 Average Rating 7 | 5 7 6 On Entrance 4 | . 6 8 Naked Turns 1 | . . 1 Heaviest Build 19 | 12 19 19 Greatest Support 40 | 3 40 20 Greatest Overweight (x) 6 | 3 3 6 Average Overweight (x) . | 2 . 1 Largest Inventory Capacity 8 | 8 8 8 Average Capacity 7 | 7 8 7 Most Carried 8 | 2 8 7 Average Carried 5 | 1 5 6 Final Capacity 8 | 8 8 5 Final Carried 7 | 2 7 5 Class Distribution -------------------- 100% | Mutant Dominant Class ---------------- Mutant | -10/Materials Mutant | -9/Materials Resources | -11 -10 -9 ----------- Run | Yrd Mat Mat Matter Collected 290 | 160 130 . Remotely . | . . . Salvage Created 287 | . 240 47 Parts 32 | . 25 7 Haulers Intercepted . | . . . Recyclers Shooed . | . . . Parts Field Recycled . | . . . Retrieved Matter . | . . . Parts Self-Destructed . | . . . Prevented . | . . . Kills | -11 -10 -9 ------- Run | Yrd Mat Mat Combat Hostiles Destroyed 13 | . 10 3 Guns 13 | . 10 3 Classes Destroyed 2 | . 2 . Swarmer 10 | . 7 3 Grunt 3 | . 3 . Best Kill Streak 3 | . 3 3 Combat Bots Only 3 | . 3 3 Max Kills in Single Turn 1 | . 1 1 Gunslinging . | . . . Exploded . | . . . Melee . | . . . Uniques/NPCs Destroyed . | . . . Combat | -11 -10 -9 -------- Run | Yrd Mat Mat Hostile Shots Fired 158 | . 68 90 Missed 45 | . 15 30 Hits 113 | . 53 60 Melee 9 | . . 9 Projectile 104 | . 53 51 Critical Strikes 2 | . . 2 Damage Taken 1331 | . 560 771 Core 549 | . 142 407 Absorbed by Shields . | . . . Core Remaining (%) 71 | 100 43 . Volleys Fired 34 | . 30 4 Largest 2 | . 2 2 Hottest 100 | . 100 100 Shots Fired 68 | . 60 8 Gun 68 | . 60 8 Cannon . | . . . Launcher . | . . . Special . | . . . Kinetic . | . . . Thermal 68 | . 60 8 Explosive . | . . . Electromagnetic . | . . . Robot Hit Streak 5 | . 5 4 Robot Miss Streak 7 | . 7 1 Penetration Max . | . . . Secondary Targets 3 | . 2 1 Max Gunslinging Chain 1 | . 1 1 Shots Hit Robots 29 | . 25 4 Core Hits 17 | . 14 3 Critical Kills . | . . . Critical Parts Destroyed . | . . . Critical Strikes 4 | . 3 1 Burn 4 | . 3 1 Melee Attacks . | . . . Impact . | . . . Slashing . | . . . Piercing . | . . . Sneak Attacks . | . . . Combat Hostiles . | . . . Follow-up Attacks . | . . . Damage Inflicted 413 | . 355 58 Guns 401 | . 349 52 Cannons . | . . . Explosions . | . . . Melee . | . . . Ramming 12 | . 6 6 Kinetic . | . . . Thermal 401 | . 349 52 Explosive . | . . . Electromagnetic . | . . . Impact . | . . . Slashing . | . . . Piercing . | . . . Highest Corruption 8 | . 1 8 Average Corruption 1 | . 1 3 Corruption Purged . | . . . Corruption Blocked . | . . . Effects 10 | . 7 3 Message Errors 2 | . 1 1 Matter Fused 3 | . 2 1 Energy Discharges 3 | . 3 . Parts Rejected 1 | . . 1 Data Loss (minor) 1 | . 1 . Overload Shots . | . . . Overflow Damage . | . . . Projectiles . | . . . Explosions . | . . . Melee . | . . . Knockbacks . | . . . Impact . | . . . Kinetic . | . . . Secondary . | . . . Self-Inflicted Damage 46 | . 43 3 Shots 1 | . 1 . Rammed 4 | . 1 3 Targets Rammed 4 | . 1 3 Kicked . | . . . Crushed . | . . . Highest Temperature 286 | . 286 108 Average Temperature 91 | . 97 43 Received Heat Transfer 417 | . 120 297 Effects 2 | . 2 . Interference 2 | . 2 . Siege Activations . | . . . Martial Activations . | . . . Shielding Activations . | . . . Robots Disrupted . | . . . Combat Hostiles . | . . . Robots Corrupted . | . . . Combat Hostiles . | . . . Parts Fried . | . . . Impact Corruptions . | . . . Robots Melted . | . . . Combat Hostiles . | . . . Parts Melted 1 | . 1 . Heat Transferred 1480 | . 1258 222 Parts Sabotaged . | . . . Parts Stolen . | . . . Parts Stripped . | . . . Power Chain Reactions 1 | . 1 . Alert | -11 -10 -9 ------- Run | Yrd Mat Mat Maximum Alert Level . | . . . Low Security (%) 100 | 100 100 100 Level 1 . | . . . Level 2 . | . . . Level 3 . | . . . Level 4 . | . . . Level 5 . | . . . High Security . | . . . Max Security . | . . . Peak Influence 116 | . 116 60 Initial 33 | . . 33 Average 36 | . 56 17 Influence Increases 386 | . 315 71 Destroy 0b10 Robot/C 260 | . 200 60 Destroy Leader 60 | . 50 10 Successful Hack 20 | . 19 1 Disable Machine 15 | . 15 . Destroy Structure 1 | . 1 . Lose Combat Pursuer 30 | . 30 . Influence Decreases 386 | . 234 152 Entered New Map 48 | . . 48 Time Decay 318 | . 224 94 Lost Part 20 | . 10 10 Squads Dispatched 2 | . 2 . Investigation 1 | . 1 . Extermination . | . . . Reinforcement 1 | . 1 . Assault . | . . . Garrison . | . . . Intercept . | . . . Searches Triggered . | . . . Construction Impeded . | . . . Haulers Reinforced . | . . . Active Scanning Responses . | . . . Cargo Convoy Interrupts . | . . . Stealth | -11 -10 -9 --------- Run | Yrd Mat Mat Distress Signals 1 | . . 1 Communications Jammed . | . . . Distress Signals . | . . . Times Spotted 34 | . 19 15 Peak Tracking Total 12 | . 4 12 Tactical Retreats 2 | . 2 . Traps | -11 -10 -9 ------- Run | Yrd Mat Mat Traps Triggered 3 | . 2 1 Indirectly 1 | . 1 . Trap Hack Attempts . | . . . Triggered . | . . . Disarmed . | . . . Reprogrammed . | . . . Reused . | . . . Traps Extracted . | . . . Installed . | . . . Triggered . | . . . Machines | -11 -10 -9 ---------- Run | Yrd Mat Mat Machines Disabled 1 | . 1 . Max in Single Turn 1 | . 1 . Machines Repaired . | . . . Machines Dismantled . | . . . Machines Sabotaged . | . . . Overloaded Fab Kills . | . . . Hacking | -11 -10 -9 --------- Run | Yrd Mat Mat Machines Accessed 5 | . 4 1 Terminals 3 | . 3 . Fabricators . | . . . Repair Stations . | . . . Recycling Units 1 | . 1 . Scanalyzers 1 | . . 1 Garrison Access . | . . . Total Hacks 12 | . 8 4 Successful 9 | . 7 2 Failed 3 | . 1 2 Catastrophic . | . . . Database Lockouts . | . . . Manual . | . . . Terminals 6 | . 6 . Fabricators . | . . . Repair Stations . | . . . Recycling Units 2 | . 2 . Scanalyzers 4 | . . 4 Garrison Access . | . . . Terminal Hacks 5 | . 5 . Record 2 | . 2 . Robot Analysis 1 | . 1 . Alert Level 1 | . 1 . Zone Layout 1 | . 1 . Fabricator Hacks . | . . . Repair Station Hacks . | . . . Recycling Unit Hacks 2 | . 2 . Process 1 | . 1 . Report Inventory 1 | . 1 . Scanalyzer 2 | . . 2 Insert Component 1 | . . 1 Analyze 1 | . . 1 Garrison Access Hacks . | . . . Unauthorized Hacks . | . . . Terminals . | . . . Fabricators . | . . . Repair Stations . | . . . Recycling Units . | . . . Scanalyzers . | . . . Garrison Access . | . . . Data Cores Recovered . | . . . Used . | . . . Hacking Detections 2 | . 2 . Full Trace Events . | . . . Feedback Events . | . . . Feedback Blocked . | . . . Robot Schematics Acquired . | . . . Robots Built . | . . . Authchips . | . . . Time . | . . . Total Robot Build Rating . | . . . Part Schematics Acquired 1 | . . 1 Parts Built . | . . . Authchips . | . . . Time . | . . . Total Part Build Rating . | . . . Parts Repaired . | . . . Time . | . . . Parts Recycled . | . . . Recycled Matter 194 | . 194 . Retrieved Matter . | . . . Retrieved Components . | . . . Parts Scanalyzed 1 | . . 1 Part Schematics Acquired 1 | . . 1 Parts Damaged . | . . . Bothacking | -11 -10 -9 ------------ Run | Yrd Mat Mat Used RIF Installer . | . . . Robots Hacked . | . . . Non-combat . | . . . Combat . | . . . Robot Hacks Applied . | . . . Relay Couplers Released . | . . . Fabnet Peak Effective % . | . . . Robots Rewired . | . . . Allies Hacked . | . . . Hacks Repelled . | . . . Allies | -11 -10 -9 -------- Run | Yrd Mat Mat Total Allies . | . . . Largest Group . | . . . Highest-Rated Group . | . . . Highest-Rated Ally . | . . . Total Orders . | . . . Ally Attacks . | . . . Total Damage . | . . . Kills . | . . . Allies Corrupted . | . . . Allies Melted . | . . . Intel | -11 -10 -9 ------- Run | Yrd Mat Mat Active Infowar (turns) . | . . . Robot Analysis Total 1 | . 1 . Derelict Logs Recovered . | . . . Drone Launches . | . . . Drone Recoveries . | . . . Exploration | -11 -10 -9 ------------- Run | Yrd Mat Mat Turns Passed 1136 | 215 644 277 Spaces Moved 589 | 124 335 130 Core 184 | 124 9 51 Treads 405 | . 326 79 Legs . | . . . Wheels . | . . . Hover . | . . . Flight . | . . . Fastest Speed 50 | 50 160 50 Average Speed 169 | 164 161 197 Slowest Speed 350 | 200 200 350 Overloaded Moves . | . . . Propulsion Burnouts . | . . . Robots Hopped . | . . . Potential Cave-ins . | . . . Cave-ins Triggered . | . . . Exploration Rate (%) 23 | 6 48 15 Regions Visited 2 Branch Regions . Pre-discovered Areas . | . . . Known Exits Taken . | . . . Unknown Exits Taken 2 | 1 1 . Scrap Searched . | . . . Spaces Dug . | . . . Terrain Destroyed . | . . . Melee . | . . . Projectile . | . . . AOE . | . . . Terrain Rammed . | . . . Walls Destroyed . | . . . Machines Disabled . | . . . Actions | -11 -10 -9 --------- Run | Yrd Mat Mat Total 650 | 133 380 137 Wait 1 | 1 . . Move 587 | 123 334 130 Hop . | . . . Pick Up 12 | 3 9 . Fast Attach 6 | 5 1 . Attach 1 | 1 . . Detach . | . . . Swap 1 | . 1 . Drop 4 | . 4 . Fire 34 | . 30 4 Melee . | . . . Ram 3 | . . 3 Kick . | . . . Crush 1 | . 1 . Escape Stasis . | . . . Rewire . | . . . Trap . | . . . Miscellaneous . | . . . Route ------- -11/Scrapyard -10/Materials -9/Materials (discovered 1 exit: [*Min]) History --------- Turn | Location | Event 5 | -11/Scrapyard | Discovered new exit (range 16) 216 | -11/Scrapyard | Entered Materials 306 | -10/Materials | Build established: Mutant 607 | -10/Materials | Core integrity fell below 50% 828 | -10/Materials | Discovered new exit (range 16) 860 | -10/Materials | Entered another Materials area 860 | -9/Materials | Evolved 2 slots: Propulsion x2 1111 | -9/Materials | Discovered new exit (range 11) 1128 | -9/Materials | Core integrity fell below 50% 1132 | -9/Materials | Core integrity fell below 20% 1137 | -9/Materials | Destroyed by G-34 Mercenary with Small Laser Last Messages --------------- R-06 Scavenger collects Flight Unit. System corrupted: Broken Lgt. Nuclear Core rejected. R-06 Scavenger collects Broken Lgt. Nuclear Core. Med. Laser destroyed. System corrupted by crushing effect (+1). System corrupted by crushing effect (+4). Knocked back. EXIT=FOUND E5R,RI1CNPG3KQMBO,WH9PEA UEKVIY Knocked back. K-01 Serf cleans the Machine. Sml. Storage Unit destroyed. System corrupted by crushing effect (+2). Slammed into B-36 Bruiser. K-01 Serf cleans the Machine. Critical hit (Burn: +37). Sml. Storage Unit destroyed. System corrupted: Matter fused (-7). Map ----- +----------------------------------------------------+ | ??????????????????# #????????????????????????????? | | ??????????????????# #????????????????????????????? | | ??????????????????# #????????????????????????????? | | ??????????????????# #????????????????????????????? | | ??????????????????# #????????????????????????????? | | ??????????????????# #????????????????????????????? | | ??????????????????# #????????????????????????????? | | ??????????????????# #????????????????????????????? | | ??????????????????# ###########??????????????????? | | ???????????????####%## #??????????????????? | | ???????????????# %# """ "" #??????????????????? | | ???????????????# %# """ Y" #??????????????????? | | ???????????????# T /%""" "" #??????????????????? | | ???????????????# %# #??????????????????? | | ???????????????# # """ #??????????????????? | | ???????????????## ## """ #??????????????????? | | ????????????????# ## """ #??????????????????? | | ????????????????+ ## #??????????????????? | | ????????????????# ###########??????????????????? | | ????????????????# ## #?????????????????????? | | ????????????????# #?????????????????????? | | ????????????????# T #?????????????????????? | | ????????????????+ #?????????????????????? | | ????????????????###### #?????????????????????? | | ?????????????????????##gg ##?????????????????????? | | ??????????????????????#* @#??????????????????????? | | ??????????????????????# b #??????????????????????? | | ??????????????????????# bg#??????????????????????? | | ??????????????????????# g #??????????????????????? | | ?????????????????????""gg #?????????????????????? | | ???????????????????#" #?????????????????????? | | ???????????????????#"! g #?????????????????????? | | ???????????????????#"" < #?????????????????????? | | ???????????????????#"! #?????????????????????? | | ???????????????????#" g #?????????????????????? | | ???????????????????#""" #?????????????????????? | | ???????????????????####g a##?????????????????????? | | ??????????????????????# #??????????????????????? | | ?????????????????????? a ??????????????????????? | | ?????????????????????? ??????????????????????? | | ?????????????????????? ??????????????????????? | | ??????????????????????#####??????????????????????? | | ?????????????????????????????????????????????????? | | ?????????????????????????????????????????????????? | | ?????????????????????????????????????????????????? | | ?????????????????????????????????????????????????? | | ?????????????????????????????????????????????????? | | ?????????????????????????????????????????????????? | | ?????????????????????????????????????????????????? | | ?????????????????????????????????????????????????? | +----------------------------------------------------+ Best States ------------- Heat Dissipation 28 Energy Generation 14 Energy Capacity 160 Matter Stores 300 Matter Capacity 300 Sight Range 16 Terrain Scan Density 10 Evasion (%) 40 Recoil Reduction 2 Item Schematics ----------------- Adv. Beam Cannon | -9/Materials | Scanalyzed Robot Schematics ------------------ None Fabricated ------------ Nothing Repaired ---------- Nothing Alien Tech Used ----------------- None Achievements -------------- Safety First Challenges ------------ None Game ------ Seed ThrusterBoltStorage Manual? 0 Play Time 00:16:09 Cumulative 1.5 hours Start 2025.08.04 @ 20:20:31 End 2025.08.04 @ 20:36:51 Sessions 1 Manual Loads 0 Difficulty Rogue Special Mode None Game No. 6 Rogue 6 Adventurer 0 Explorer 0 Win Type - Total 0 Types 0/0/0/0/0/0/0/0/0/0 Lore% 0 Gallery% 2 Achievement% 3 Wizard Run 0 Options --------- Layout 1 ASCII 0 Keyboard 0 Movement Arrows Keybinds 0 Fullscreen 1 Font 24/Smallcaps Map View 50x35 Zoom Use 0% Tactical HUD 0 Map Filters NONE Filters NONE Steam 1 RUN: 567f9a9b-a723-472f-a6c4-f4d13326ae14